bitfinex/quotes_BTCUSD_20250129
["timestamp","ask_amount","ask_price","bid_price","bid_amount"]
[1738175118133,0.00048268,102340.0,102330.0,1.20620716]
[1738175118557,0.00048268,102340.0,102330.0,1.20658081]
[1738175118734,0.00048268,102340.0,102330.0,0.66360716]
[1738175119846,0.00048268,102340.0,102330.0,0.66398081]
[1738175120046,0.00048268,102340.0,102330.0,0.65312716]
[1738175120206,0.00048268,102340.0,102330.0,0.6628691]
[1738175120573,0.00048268,102340.0,102330.0,0.6733491]
[1738175121393,0.00048268,102340.0,102330.0,0.6734913]
[1738175121804,0.0007813,102340.0,102330.0,0.6734913]
[1738175123000,0.0007813,102340.0,102330.0,0.6630113]
[1738175123206,0.0007813,102340.0,102330.0,0.67386495]
[1738175123633,0.0007813,102340.0,102330.0,0.6734913]
[1738175123829,0.0007813,102340.0,102330.0,0.67386495]
[1738175124233,0.0007813,102340.0,102330.0,0.68386495]
[1738175124609,0.0007813,102340.0,102330.0,2.32144495]
[1738175124812,0.0007813,102340.0,102330.0,2.35180887]
[1738175125217,0.0007813,102340.0,102330.0,2.38102369]
[1738175127917,0.0007813,102340.0,102330.0,2.35180887]
[1738175128121,0.0007813,102340.0,102330.0,2.38102369]
[1738175128505,0.0007813,102340.0,102330.0,2.35180887]
[1738175128910,3e-07,102340.0,102330.0,2.38102369]
[1738175129076,3e-07,102340.0,102330.0,1.61104369]
[1738175129678,3e-07,102340.0,102330.0,1.29344369]
[1738175129879,0.00029883,102370.0,102360.0,0.57521465]
[1738175130164,0.00044357,102370.0,102360.0,0.76503655]
[1738175130401,0.00044357,102370.0,102360.0,0.62582173]
[1738175130618,0.00044357,102370.0,102360.0,0.69545781]
[1738175130831,0.00044357,102370.0,102360.0,0.72582173]
[1738175131258,0.00044357,102370.0,102360.0,0.72782173]
[1738175131479,0.00044357,102370.0,102360.0,0.83698173]
[1738175131707,0.00044357,102370.0,102360.0,0.80661781]
[1738175132149,0.00044357,102370.0,102360.0,0.86619655]
[1738175133384,0.00044357,102370.0,102360.0,0.87619655]
[1738175134048,0.00029883,102380.0,102370.0,0.42856457]
[1738175134272,0.00029883,102380.0,102370.0,1.10458181]
[1738175134510,0.00029883,102380.0,102370.0,1.00447981]
[1738175134969,0.00029883,102380.0,102370.0,0.62899081]
[1738175135172,0.00029883,102380.0,102370.0,0.64088581]
[1738175135317,0.00029883,102380.0,102370.0,0.63957581]
[1738175136673,0.00029883,102380.0,102370.0,0.50744381]
[1738175136872,0.00029883,102380.0,102370.0,1.17160881]
[1738175137828,0.00029883,102380.0,102370.0,0.96403381]
[1738175138798,0.00029883,102380.0,102370.0,0.97403027]
[1738175140047,0.00029883,102380.0,102370.0,0.88367827]
[1738175140622,0.00029883,102380.0,102370.0,0.66295727]
[1738175140852,0.00029883,102380.0,102370.0,0.71744027]
[1738175141059,0.00029883,102380.0,102370.0,0.62792027]
[1738175141271,0.00029883,102380.0,102370.0,0.72792027]
[1738175142324,0.00029883,102380.0,102370.0,0.72754662]
[1738175142498,0.00029883,102380.0,102370.0,0.72792027]
[1738175143682,0.00029883,102380.0,102370.0,0.62624662]
[1738175143871,0.00029883,102380.0,102370.0,0.64924662]
[1738175144077,0.00029883,102380.0,102370.0,0.63876662]
[1738175144295,0.00029883,102380.0,102370.0,0.64924662]
[1738175145671,0.00029883,102380.0,102370.0,0.63914027]
[1738175145865,0.00029883,102380.0,102370.0,0.64962027]
[1738175146085,0.00029883,102380.0,102370.0,0.64924662]
[1738175146465,0.00029883,102380.0,102370.0,0.54924662]
[1738175146820,0.00029883,102380.0,102370.0,0.51576662]
[1738175147052,0.00029883,102380.0,102370.0,0.52624662]
[1738175147258,0.00029883,102380.0,102370.0,0.41852346]
[1738175147465,0.00029883,102380.0,102370.0,0.27937711]
[1738175147667,0.00029883,102380.0,102370.0,0.26938065]
[1738175147861,0.00029883,102380.0,102370.0,0.419007]
[1738175148303,0.00029883,102380.0,102370.0,0.410007]
[1738175148513,0.00029883,102380.0,102370.0,0.407007]
[1738175148715,0.00029883,102380.0,102370.0,0.419007]
[1738175148939,0.00029883,102380.0,102370.0,0.319007]
[1738175149153,0.00029883,102380.0,102370.0,0.316007]
[1738175149451,0.22074199,102380.0,102370.0,0.009]
[1738175149682,0.47733007,102380.0,102370.0,0.009]
[1738175149900,0.1254,102360.0,102350.0,0.00037365]
[1738175150124,0.1254,102360.0,102350.0,0.14707339]
[1738175150352,0.1254,102360.0,102350.0,0.25751339]
[1738175151265,0.1254,102360.0,102350.0,0.26051339]
[1738175151940,0.1254,102360.0,102350.0,0.26013974]
[1738175152132,0.1254,102360.0,102350.0,0.26051339]
[1738175154610,0.0482,102360.0,102350.0,0.35775655]
[1738175155772,0.1237,102370.0,102360.0,0.14691465]
[1738175156901,0.1247,102370.0,102360.0,0.14691465]
[1738175157110,0.001,102370.0,102360.0,0.24691465]
[1738175157359,0.001,102370.0,102360.0,0.34415781]
[1738175158236,0.001,102370.0,102360.0,0.35459781]
[1738175158642,0.08279883,102380.0,102370.0,0.146527]
[1738175159006,0.08279883,102380.0,102370.0,0.156967]
[1738175159370,0.08279883,102380.0,102370.0,0.01044]
[1738175160442,0.08279883,102380.0,102370.0,0.156967]
[1738175160749,0.08379883,102380.0,102370.0,0.156967]
[1738175161707,0.23031083,102380.0,102370.0,0.01044]
[1738175162155,0.08379883,102380.0,102370.0,0.01044]
[1738175162982,0.23031083,102380.0,102370.0,0.01044]
[1738175163186,0.23031083,102380.0,102350.0,0.44222384]
[1738175163422,0.0826,102360.0,102350.0,0.15727084]
[1738175163932,0.0826,102360.0,102350.0,0.14720449]
[1738175164363,0.0826,102360.0,102350.0,0.15764449]
[1738175164568,0.0826,102360.0,102350.0,0.16364449]
[1738175164785,0.0826,102360.0,102350.0,0.16327084]
[1738175164990,0.0826,102360.0,102350.0,0.00628684]
[1738175165193,0.0826,102360.0,102350.0,0.01772684]
[1738175165444,0.0826,102360.0,102350.0,0.15828184]
[1738175165666,0.0826,102360.0,102350.0,0.15865549]
[1738175165953,0.0826,102360.0,102350.0,0.15765549]
[1738175166185,0.0826,102360.0,102350.0,0.15865549]
[1738175166553,0.0826,102360.0,102350.0,0.15765549]
[1738175166786,0.0826,102360.0,102350.0,0.16365549]
[1738175166943,0.0836,102360.0,102350.0,0.01072684]
[1738175167408,0.43868139,102360.0,102350.0,0.00028684]
[1738175167629,0.32738416,102360.0,102350.0,0.00028684]
[1738175170410,0.48716024,102360.0,102350.0,0.00028684]
[1738175171027,0.49678559,102360.0,102350.0,0.00028684]
[1738175171702,0.38670951,102360.0,102350.0,0.00028684]
[1738175172663,0.1333,102360.0,102350.0,0.00028684]
[1738175172882,0.001,102360.0,102350.0,0.14721549]
[1738175173098,0.001,102360.0,102350.0,0.49445865]
[1738175174013,0.00029883,102380.0,102370.0,0.246527]
[1738175176229,0.00129883,102380.0,102370.0,0.246527]
[1738175176646,0.00129883,102380.0,102370.0,0.24690065]
[1738175176853,0.00129883,102380.0,102370.0,0.34414381]
[1738175177506,0.00129883,102380.0,102370.0,0.49414381]
[1738175177730,0.00129883,102380.0,102370.0,0.74254381]
[1738175178169,0.00129883,102380.0,102370.0,1.63849081]
[1738175178389,0.00029883,102380.0,102370.0,1.67885292]
[1738175178865,1e-08,102380.0,102370.0,2.18725292]
[1738175179083,1e-08,102390.0,102380.0,2.46141265]
[1738175179307,1e-08,102390.0,102380.0,1.21357092]
[1738175179655,1e-08,102390.0,102380.0,1.22357092]
[1738175180227,1e-08,102390.0,102380.0,1.22457092]
[1738175180566,1e-08,102390.0,102380.0,1.23057092]
[1738175180984,1e-08,102390.0,102380.0,1.55557092]
[1738175181837,1e-08,102390.0,102380.0,1.57480069]
[1738175182680,1e-08,102390.0,102380.0,1.54443858]
[1738175182874,1e-08,102390.0,102380.0,1.58475394]
[1738175183088,1e-08,102390.0,102380.0,1.55444481]
[1738175183829,1e-08,102390.0,102380.0,1.22944481]
[1738175184878,1e-08,102390.0,102380.0,1.22344481]
[1738175185088,1e-08,102390.0,102380.0,1.23244481]
[1738175185267,1e-08,102390.0,102380.0,1.23144481]
[1738175185721,1e-08,102390.0,102380.0,1.23344481]
[1738175186129,1e-08,102390.0,102380.0,1.12344481]
[1738175186309,1e-08,102390.0,102380.0,1.23388481]
[1738175187014,1e-08,102390.0,102380.0,1.55888481]
[1738175187222,1e-08,102390.0,102380.0,1.52544481]
[1738175187440,1e-08,102390.0,102380.0,1.53588481]
[1738175187657,1e-08,102390.0,102380.0,1.56888481]
[1738175190429,1e-08,102390.0,102380.0,1.45888481]
[1738175190656,1e-08,102390.0,102380.0,1.55888481]
[1738175190862,1e-08,102390.0,102380.0,1.66196481]
[1738175193791,1e-08,102390.0,102380.0,1.65152481]
[1738175194013,1e-08,102390.0,102380.0,1.66196481]
[1738175194220,1e-08,102390.0,102380.0,1.56196481]
[1738175194741,1e-08,102390.0,102380.0,1.66196481]
[1738175202027,1e-08,102390.0,102380.0,1.48426481]
[1738175202238,1e-08,102390.0,102380.0,0.97582481]
[1738175202590,1e-08,102390.0,102380.0,0.98626481]
[1738175202757,1e-08,102390.0,102380.0,1.13626481]
[1738175205158,1e-08,102390.0,102380.0,1.13640691]
[1738175210236,1e-08,102390.0,102380.0,1.16683051]
[1738175214737,1e-08,102390.0,102380.0,1.06337686]
[1738175214915,1e-08,102390.0,102380.0,1.06375051]
[1738175224775,1e-08,102390.0,102380.0,1.06333686]
[1738175225210,0.04690001,102390.0,102380.0,0.8064341]
[1738175225640,0.12760001,102390.0,102380.0,0.6564341]
[1738175226049,0.12760001,102390.0,102380.0,0.6474341]
[1738175226254,0.12760001,102390.0,102380.0,0.6564341]
[1738175226485,0.12760001,102390.0,102380.0,0.6474341]
[1738175226666,0.12760001,102390.0,102380.0,0.6370341]
[1738175226868,0.12760001,102390.0,102380.0,0.6430341]
[1738175227070,0.12760001,102390.0,102380.0,0.6350341]
[1738175227279,0.12760001,102390.0,102380.0,0.6370341]
[1738175227899,0.12760001,102390.0,102380.0,0.6380341]
[1738175234287,0.12760001,102390.0,102380.0,0.4915221]
[1738175234288,0.27409801,102390.0,102380.0,0.4915221]
[1738175235970,0.27409801,102390.0,102380.0,0.4885221]
[1738175236833,0.27409801,102390.0,102380.0,0.6350341]
[1738175237788,0.27509801,102390.0,102380.0,0.4885221]
[1738175238221,0.37234117,102390.0,102380.0,0.4885221]
[1738175241608,0.12860001,102390.0,102380.0,0.6350341]
[1738175246892,0.37234117,102390.0,102380.0,0.4885221]
[1738175247083,0.12860001,102390.0,102380.0,0.6350341]
[1738175247285,0.04790001,102390.0,102380.0,0.6350341]
[1738175247511,0.04790001,102390.0,102380.0,0.4885221]
[1738175247782,0.04790001,102390.0,102380.0,0.6350341]
[1738175250286,0.00100001,102390.0,102380.0,0.7350341]
[1738175250511,0.00100001,102390.0,102380.0,0.83227726]
[1738175250732,0.00100001,102390.0,102380.0,1.10965091]
[1738175251398,0.00100001,102390.0,102380.0,1.14007143]
[1738175251603,1e-08,102390.0,102380.0,1.10965091]
[1738175252445,1e-08,102390.0,102380.0,1.11265091]
[1738175253807,1e-08,102390.0,102380.0,1.13249742]
[1738175254025,1e-08,102390.0,102380.0,1.14207349]
[1738175254230,1e-08,102390.0,102380.0,1.13907349]
[1738175254440,1e-08,102390.0,102380.0,1.17049423]
[1738175255074,1e-08,102390.0,102380.0,1.14007349]
[1738175255688,1e-08,102390.0,102380.0,1.14607349]
[1738175255996,1e-08,102390.0,102380.0,1.17649067]
[1738175256484,1e-08,102390.0,102380.0,1.14607349]
[1738175258397,1e-08,102390.0,102380.0,1.17649112]
[1738175258570,1e-08,102390.0,102380.0,1.14607349]
[1738175258881,1e-08,102390.0,102380.0,1.16907349]
[1738175259101,1e-08,102390.0,102380.0,1.19608138]
[1738175261293,1e-08,102390.0,102380.0,1.20608138]
[1738175261509,1e-08,102390.0,102380.0,1.53108138]
[1738175265663,1e-08,102390.0,102380.0,1.61408138]
[1738175265867,1e-08,102390.0,102380.0,1.60544138]
[1738175266073,1e-08,102390.0,102380.0,1.60702383]
[1738175266287,1e-08,102390.0,102380.0,1.50265018]
[1738175266494,1e-08,102390.0,102380.0,1.63301591]
[1738175266709,1e-08,102390.0,102380.0,1.62738956]
[1738175266925,1e-08,102390.0,102380.0,1.59702383]
[1738175267133,1e-08,102390.0,102380.0,1.60602383]
[1738175267343,1e-08,102390.0,102380.0,2.17898957]
[1738175268297,1e-08,102390.0,102380.0,2.18898957]
[1738175269739,1e-08,102390.0,102380.0,2.17898957]
[1738175269954,1e-08,102390.0,102380.0,2.18898957]
[1738175270136,1e-08,102390.0,102380.0,2.17898957]
[1738175270379,1e-08,102390.0,102380.0,2.18898957]
[1738175272117,1e-08,102390.0,102380.0,2.17898957]
[1738175273008,1e-08,102390.0,102380.0,2.18898957]
[1738175273160,1e-08,102390.0,102380.0,2.17898957]
[1738175273362,1e-08,102390.0,102380.0,2.18898957]
[1738175278053,1e-08,102390.0,102380.0,2.20898957]
[1738175278262,0.00029904,102410.0,102400.0,0.29265765]
[1738175278480,0.00029904,102410.0,102400.0,2.48472081]
[1738175278700,4e-08,102410.0,102400.0,2.36236181]
[1738175278912,4e-08,102410.0,102400.0,0.87490081]
[1738175279094,4e-08,102410.0,102400.0,1.39695655]
[1738175279300,4e-08,102410.0,102400.0,1.4212547]
[1738175279471,6.4e-07,102410.0,102400.0,1.44661467]
[1738175279677,6.4e-07,102410.0,102400.0,1.45561467]
[1738175279836,6.4e-07,102410.0,102400.0,1.44661467]
[1738175280244,0.00029862,102420.0,102410.0,2.31632965]
[1738175280617,6.2e-07,102420.0,102410.0,3.03153667]
[1738175280831,6.2e-07,102420.0,102410.0,1.34495067]
[1738175281048,0.00029862,102450.0,102440.0,0.49680065]
[1738175281269,0.00078053,102450.0,102440.0,0.63093044]
[1738175281474,0.00078053,102450.0,102440.0,0.65522859]
[1738175281928,0.00078053,102450.0,102440.0,0.67822859]
[1738175282362,0.00078053,102450.0,102440.0,0.62740381]
[1738175282600,0.00078053,102450.0,102440.0,0.65393044]
[1738175282811,0.00078053,102450.0,102440.0,0.62740381]
[1738175283236,0.00078053,102450.0,102440.0,0.61040381]
[1738175283939,0.00078053,102450.0,102440.0,0.64002129]
[1738175284300,0.00078053,102450.0,102440.0,0.63964764]
[1738175284524,0.00078053,102450.0,102440.0,0.64002129]
[1738175287195,0.00078053,102450.0,102440.0,0.53964764]
[1738175287469,0.00078053,102450.0,102440.0,0.52966129]
[1738175287692,0.00078053,102450.0,102440.0,0.53964764]
[1738175288066,0.00078053,102450.0,102440.0,0.39002129]
[1738175288599,0.00078053,102450.0,102440.0,0.54002129]
[1738175288813,0.00178053,102450.0,102440.0,0.54002129]
[1738175289035,0.00178053,102450.0,102440.0,0.52366129]
[1738175289224,0.00178053,102450.0,102440.0,0.52628764]
[1738175289364,0.00178053,102450.0,102440.0,0.51682194]
[1738175289562,0.00178053,102450.0,102440.0,0.50703016]
[1738175289906,0.00178053,102450.0,102440.0,0.50740381]
[1738175291069,0.00178053,102450.0,102440.0,0.49704381]
[1738175291277,0.00178053,102450.0,102440.0,0.50740381]
[1738175292332,0.00178053,102450.0,102440.0,0.50703016]
[1738175292538,0.00178053,102450.0,102440.0,0.50740381]
[1738175292975,0.00178053,102450.0,102440.0,0.50703016]
[1738175293176,0.08478053,102450.0,102440.0,0.149427]
[1738175293429,0.08478053,102450.0,102440.0,0.159787]
[1738175293581,0.08478053,102450.0,102440.0,0.16016065]
[1738175294492,0.08478053,102450.0,102440.0,0.14980065]
[1738175294664,0.08478053,102450.0,102440.0,0.16016065]
[1738175297496,0.00178053,102450.0,102440.0,0.16016065]
[1738175297695,0.00178053,102450.0,102440.0,0.25740381]
[1738175297907,0.00178053,102450.0,102440.0,0.35740381]
[1738175299470,0.00178053,102450.0,102440.0,0.50740381]
[1738175299911,0.00078053,102450.0,102440.0,0.50740381]
[1738175300186,0.00078053,102450.0,102440.0,0.50440381]
[1738175300510,0.00078053,102450.0,102440.0,0.51040381]
[1738175301263,0.00078053,102450.0,102440.0,0.61040381]
[1738175301461,0.00078053,102450.0,102440.0,0.63340381]
[1738175302430,0.00078053,102450.0,102440.0,0.53340381]
[1738175303127,0.00078053,102450.0,102440.0,0.63340381]
[1738175304099,0.00078053,102450.0,102440.0,0.62304381]
[1738175304329,0.00078053,102450.0,102440.0,0.53336381]
[1738175304532,0.00078053,102450.0,102440.0,0.63336381]
[1738175307183,0.00078053,102450.0,102440.0,0.61036381]
[1738175308801,0.00078053,102450.0,102440.0,0.60999016]
[1738175308958,0.00078053,102450.0,102440.0,0.61036381]
[1738175311444,0.00078053,102450.0,102440.0,0.63336381]
[1738175311622,0.00078053,102450.0,102440.0,0.74277982]
[1738175312481,0.00078053,102450.0,102440.0,2.03677282]
[1738175312700,0.00078053,102450.0,102440.0,2.09547282]
[1738175313888,0.00078053,102450.0,102440.0,0.80147982]
[1738175314098,0.00078053,102450.0,102440.0,3.31995882]
[1738175315040,0.00078053,102450.0,102440.0,3.81145882]
[1738175316379,0.00078053,102450.0,102440.0,3.57040282]
[1738175316573,0.00078053,102450.0,102440.0,3.56031482]
[1738175317325,5.3e-07,102450.0,102440.0,3.56031482]
[1738175317511,5.3e-07,102450.0,102440.0,1.29297982]
[1738175319913,0.00029862,102480.0,102470.0,0.49675765]
[1738175320084,0.00043983,102480.0,102470.0,0.6243791]
[1738175320288,0.00043983,102480.0,102470.0,0.59400081]
[1738175321531,0.00043983,102480.0,102470.0,0.59700081]
[1738175323592,0.00043983,102480.0,102470.0,0.61611305]
[1738175324008,0.00043983,102480.0,102470.0,0.61311305]
[1738175324220,0.00043983,102480.0,102470.0,0.64211305]
[1738175324431,0.00043983,102480.0,102470.0,0.64311305]
[1738175324985,0.00043983,102480.0,102470.0,0.65211845]
[1738175325407,0.00043983,102480.0,102470.0,0.65311845]
[1738175327838,0.00043983,102480.0,102470.0,0.73211845]
[1738175328056,0.00043983,102480.0,102470.0,0.76244398]
[1738175329403,0.00043983,102480.0,102470.0,1.25380398]
[1738175329608,8.3e-07,102480.0,102470.0,1.26380398]
[1738175329818,8.3e-07,102480.0,102470.0,1.31330398]
[1738175330031,8.3e-07,102480.0,102470.0,1.30730398]
[1738175330239,8.3e-07,102480.0,102470.0,2.80730398]
[1738175330505,8.3e-07,102480.0,102470.0,2.81630398]
[1738175330750,8.3e-07,102480.0,102470.0,1.30730398]
[1738175330997,8.3e-07,102480.0,102470.0,1.31630398]
[1738175331411,8.3e-07,102480.0,102470.0,1.31530398]
[1738175331873,8.3e-07,102480.0,102470.0,1.31730398]
[1738175332281,8.3e-07,102480.0,102470.0,1.31530398]
[1738175332687,8.3e-07,102480.0,102470.0,1.31730398]
[1738175333326,8.3e-07,102480.0,102470.0,1.30630398]
[1738175333743,8.3e-07,102480.0,102470.0,1.31530398]
[1738175334163,0.00029945,102480.0,102470.0,1.31530398]
[1738175334390,0.00029945,102480.0,102470.0,5.03893298]
[1738175334571,4.5e-07,102480.0,102470.0,3.78007198]
[1738175334724,4.5e-07,102480.0,102470.0,1.32962398]
[1738175336247,7.7e-07,102490.0,102480.0,1.93141265]
[1738175336459,7.7e-07,102490.0,102480.0,1.27102234]
[1738175336895,0.00025919,102500.0,102490.0,2.02223365]
[1738175337099,0.00025919,102500.0,102490.0,2.14980234]
[1738175338159,0.01666667,102510.0,102500.0,0.246341]
[1738175338373,0.00029883,102520.0,102510.0,0.369327]
[1738175338588,0.00044329,102520.0,102510.0,0.46694381]
[1738175339628,0.00044329,102520.0,102510.0,0.56994381]
[1738175339888,0.00044329,102520.0,102510.0,0.57194381]
[1738175340422,0.08114329,102520.0,102510.0,0.45757016]
[1738175341080,0.08114329,102520.0,102510.0,0.46789016]
[1738175342266,0.00044329,102520.0,102510.0,0.46826381]
[1738175342662,0.00044329,102520.0,102510.0,0.59126381]
[1738175343262,0.00044329,102520.0,102510.0,0.59122381]
[1738175343691,0.00044329,102520.0,102510.0,0.61098021]
[1738175344025,0.00044329,102520.0,102510.0,0.61060656]
[1738175344230,0.00044329,102520.0,102510.0,0.61098021]
[1738175345815,0.00044329,102520.0,102510.0,0.60992842]
[1738175346024,0.00044329,102520.0,102510.0,0.62058207]
[1738175346302,0.00044329,102520.0,102510.0,0.62088048]
[1738175347735,0.00044329,102520.0,102510.0,0.62050683]
[1738175348147,0.0003254,102520.0,102510.0,0.62050683]
[1738175348590,0.0003254,102520.0,102510.0,0.62088048]
[1738175348802,0.0003254,102520.0,102510.0,0.62050683]
[1738175351032,0.0003254,102520.0,102510.0,0.63046683]
[1738175351783,0.0003254,102520.0,102510.0,0.63084048]
[1738175352376,0.0771254,102520.0,102510.0,0.30031732]
[1738175352589,0.1248254,102520.0,102510.0,0.40746683]
[1738175352797,0.1248254,102520.0,102510.0,0.55746683]
[1738175353439,0.1248254,102520.0,102510.0,0.55546683]
[1738175353640,0.1248254,102520.0,102510.0,0.54684048]
[1738175353847,0.1248254,102520.0,102510.0,0.64684048]
[1738175354253,0.1248254,102520.0,102510.0,0.65284048]
[1738175355562,0.1248254,102520.0,102510.0,0.65246683]
[1738175355747,0.1248254,102520.0,102510.0,0.47310857]
[1738175355902,0.1248254,102520.0,102510.0,0.27623906]
[1738175356113,0.1248254,102520.0,102510.0,0.36595906]
[1738175356311,0.1248254,102520.0,102510.0,0.37623906]
[1738175357393,0.1248254,102520.0,102510.0,0.26295906]
[1738175357604,0.1248254,102520.0,102510.0,0.27286541]
[1738175357960,0.1248254,102520.0,102510.0,0.27323906]
[1738175358161,0.1248254,102520.0,102510.0,0.27286541]
[1738175358969,0.1248254,102520.0,102510.0,0.17286541]
[1738175359372,0.1248254,102520.0,102510.0,0.17323906]
[1738175361621,0.1248254,102520.0,102510.0,0.16295906]
[1738175361820,0.1248254,102520.0,102510.0,0.17323906]
[1738175362609,0.1248254,102520.0,102510.0,0.16723906]
[1738175362812,0.1248254,102520.0,102510.0,0.16686541]
[1738175363238,0.1258254,102520.0,102510.0,0.16986541]
[1738175367197,0.1258254,102520.0,102510.0,0.26710857]
[1738175367396,0.0013254,102520.0,102510.0,0.51710857]
[1738175367598,0.0013254,102520.0,102510.0,0.51748222]
[1738175367800,0.0013254,102520.0,102510.0,0.61748222]
[1738175368030,0.0013254,102520.0,102510.0,0.64787138]
[1738175368594,0.0013254,102520.0,102510.0,0.77097138]
[1738175369137,0.0013254,102520.0,102510.0,0.93947138]
[1738175370179,0.0003254,102520.0,102510.0,0.93947138]
[1738175370374,0.0003254,102520.0,102510.0,0.93647138]
[1738175370673,0.0003254,102520.0,102510.0,0.94547138]
[1738175371048,0.0003254,102520.0,102510.0,0.84547138]
[1738175371255,0.0003254,102520.0,102510.0,0.89817138]
[1738175372963,0.0003254,102520.0,102510.0,0.89917138]
[1738175374709,0.0003254,102520.0,102510.0,0.82337138]
[1738175378933,0.0003254,102520.0,102510.0,0.95037138]
[1738175379207,0.0003254,102520.0,102510.0,1.35025938]
[1738175379414,4e-07,102520.0,102510.0,1.84142938]
[1738175379648,4e-07,102520.0,102510.0,1.44154138]
[1738175380053,5e-07,102520.0,102510.0,1.44154138]
[1738175380262,5e-07,102520.0,102510.0,1.44054138]
[1738175380470,5e-07,102520.0,102510.0,1.43454138]
[1738175381767,5e-07,102520.0,102510.0,1.72406801]
[1738175381967,5e-07,102520.0,102510.0,1.32556801]
[1738175382557,5e-07,102520.0,102510.0,1.29904138]
[1738175383915,5e-07,102520.0,102510.0,1.40200138]
[1738175384167,5e-07,102520.0,102510.0,1.48944286]
[1738175384685,5e-07,102520.0,102510.0,1.51596949]
[1738175384933,5e-07,102520.0,102510.0,1.91446949]
[1738175387841,6e-05,102550.0,102540.0,0.39665765]
[1738175388041,6e-05,102550.0,102540.0,0.98492081]
[1738175388623,6e-05,102550.0,102540.0,1.00792081]
[1738175388836,6e-05,102550.0,102540.0,1.03824147]
[1738175389041,1e-06,102550.0,102540.0,2.21920547]
[1738175389254,1e-06,102550.0,102540.0,2.47220547]
[1738175389468,1e-06,102550.0,102540.0,2.51830547]
[1738175390118,1e-06,102550.0,102540.0,2.22112847]
[1738175390349,1e-06,102550.0,102540.0,1.90432147]
[1738175390566,1e-06,102550.0,102540.0,2.62877047]
[1738175390818,0.00029862,102560.0,102550.0,0.023]
[1738175391068,0.00078005,102560.0,102550.0,0.26688681]
[1738175391498,0.00078005,102560.0,102550.0,0.24388681]
[1738175391622,0.00078005,102560.0,102550.0,0.26688681]
[1738175393364,0.00078005,102560.0,102550.0,0.26788681]
[1738175394819,0.00078005,102560.0,102550.0,0.24488681]
[1738175395039,0.00078005,102560.0,102550.0,0.26788681]
[1738175395841,0.00078005,102560.0,102550.0,0.26751316]
[1738175396262,0.00078005,102560.0,102550.0,0.27812681]
[1738175397632,0.00078005,102560.0,102550.0,0.25475316]
[1738175398041,0.05028005,102560.0,102550.0,0.25475316]
[1738175398684,0.00078005,102560.0,102550.0,0.25475316]
[1738175398890,0.00078005,102560.0,102550.0,0.25512681]
[1738175399528,0.00078005,102560.0,102550.0,0.25475316]
[1738175399731,0.00078005,102560.0,102550.0,0.25512681]
[1738175403157,0.00078005,102560.0,102550.0,0.30845472]
[1738175403359,5e-08,102560.0,102550.0,1.35467672]
[1738175403578,5e-08,102560.0,102550.0,1.10126135]
[1738175403788,0.03194157,102590.0,102580.0,0.49660065]
[1738175403999,0.03208599,102590.0,102580.0,0.59384381]
[1738175404198,0.03208599,102590.0,102580.0,0.62415966]
[1738175404543,0.03208599,102590.0,102580.0,0.49384381]
[1738175404773,0.10888599,102590.0,102580.0,0.246227]
[1738175404984,0.10888599,102590.0,102580.0,0.256467]
[1738175405410,0.10888599,102590.0,102580.0,0.25684065]
[1738175405830,0.10888599,102590.0,102580.0,0.256467]
[1738175406868,0.10888599,102590.0,102580.0,0.25684065]
[1738175407101,0.10888599,102590.0,102580.0,0.35408381]
[1738175407333,0.03208599,102590.0,102580.0,0.35408381]
[1738175409557,0.01541932,102590.0,102580.0,0.35408381]
[1738175410868,0.01541932,102590.0,102580.0,0.36386876]
[1738175411071,0.01541932,102590.0,102580.0,0.36486876]
[1738175411271,0.01541932,102590.0,102580.0,0.34484381]
[1738175411500,0.09751932,102590.0,102580.0,0.257467]
[1738175411614,0.09751932,102590.0,102580.0,0.256467]
[1738175413323,0.01541932,102590.0,102580.0,0.60408381]
[1738175413603,0.01541932,102590.0,102580.0,0.65738877]
[1738175413994,0.01541932,102590.0,102580.0,2.12805277]
[1738175414368,0.01541932,102590.0,102580.0,2.12905277]
[1738175414572,0.01541932,102590.0,102580.0,2.20825277]
[1738175414780,0.01541932,102590.0,102580.0,2.20725277]
[1738175415226,3.2e-07,102590.0,102580.0,2.26715277]
[1738175415417,0.0001422,102600.0,102590.0,1.95947365]
[1738175415418,5.2e-07,102600.0,102590.0,1.95947365]
[1738175415637,5.2e-07,102600.0,102590.0,1.16252477]
[1738175417807,5.2e-07,102600.0,102590.0,1.17272477]
[1738175418055,5.2e-07,102600.0,102590.0,1.17572477]
[1738175418387,5.2e-07,102600.0,102590.0,1.17535112]
[1738175418500,5.2e-07,102600.0,102590.0,1.19412477]
[1738175418739,5.2e-07,102600.0,102590.0,1.12812477]
[1738175418956,5.2e-07,102600.0,102590.0,1.11781981]
[1738175419158,5.2e-07,102600.0,102590.0,1.02044616]
[1738175419361,5.2e-07,102600.0,102590.0,0.97081981]
[1738175419764,5.2e-07,102600.0,102590.0,0.99744616]
[1738175419989,5.2e-07,102600.0,102590.0,0.98761981]
[1738175420199,5.2e-07,102600.0,102590.0,0.99781981]
[1738175420595,5.2e-07,102600.0,102590.0,0.99481981]
[1738175420801,5.2e-07,102600.0,102590.0,1.01629008]
[1738175421002,5.2e-07,102600.0,102590.0,1.00609008]
[1738175421199,5.2e-07,102600.0,102590.0,1.01629008]
[1738175422549,5.2e-07,102600.0,102590.0,1.01591643]
[1738175422765,5.2e-07,102600.0,102590.0,1.16952724]
[1738175422928,5.2e-07,102600.0,102590.0,1.30966049]
[1738175423131,5.2e-07,102600.0,102590.0,2.95566049]
[1738175423553,5.2e-07,102600.0,102590.0,1.45566049]
[1738175423772,5.2e-07,102600.0,102590.0,1.45366049]
[1738175424194,5.2e-07,102600.0,102590.0,1.45666049]
[1738175427126,5.2e-07,102600.0,102590.0,2.95695911]
[1738175427888,5.2e-07,102600.0,102590.0,3.05983911]
[1738175429008,5.2e-07,102600.0,102590.0,1.55983911]
[1738175429459,5.2e-07,102600.0,102590.0,3.05983911]
[1738175430321,5.2e-07,102600.0,102590.0,1.50153911]
[1738175430527,5.2e-07,102600.0,102590.0,1.51136546]
[1738175431379,5.2e-07,102600.0,102590.0,1.27306546]
[1738175431553,5.2e-07,102600.0,102590.0,1.28326546]
[1738175431867,5.2e-07,102600.0,102590.0,1.25040195]
[1738175432307,5.2e-07,102600.0,102590.0,1.28061732]
[1738175432506,5.2e-07,102600.0,102590.0,1.28024367]
[1738175433071,5.2e-07,102600.0,102590.0,1.28061732]
[1738175433461,5.2e-07,102600.0,102590.0,1.27241732]
[1738175433702,5.2e-07,102600.0,102590.0,1.28261732]
[1738175434262,5.2e-07,102600.0,102590.0,1.28224367]
[1738175434521,5.2e-07,102600.0,102590.0,1.28261732]
[1738175439661,5.2e-07,102600.0,102590.0,1.36041732]
[1738175439952,5.2e-07,102600.0,102590.0,2.86041732]
[1738175440157,5.2e-07,102600.0,102590.0,2.85841732]
[1738175440467,5.2e-07,102600.0,102590.0,2.86141732]
[1738175442583,5.2e-07,102600.0,102590.0,1.36141732]
[1738175444389,5.2e-07,102600.0,102590.0,1.25004367]
[1738175444593,5.2e-07,102600.0,102590.0,1.26061732]